Cogmind - Beta 11.1 @@@ ROGUE MODE // 2022.05.25 @ 10:23:03 Player: btmk16 Result: Self-destructed Performance ------------- Evolutions (2) 1000 Regions Visited (3) 600 Robots Destroyed (11) 55 Value Destroyed (176) 176 Prototype IDs (0) 0 Alien Tech Used (0) 0 Bonus (0) 0 TOTAL SCORE: 1831 Bonus ------- None Cogmind --------- Core Integrity 318/550 Matter 285/300 Energy 100/100 System Corruption 0% Temperature Cool (1) Movement Flying (40) Location -8/Materials Parts ------- > --- POWER (1) -------- (None) > --- PROPULSION (4) --- Flight Unit > --- UTILITY (4) ------ Signal Interpreter Signal Interpreter Terrain Scan Processor > --- WEAPON (2) ------- Small Laser Beam Rifle > --- INVENTORY (5) ---- Light Treads Aluminum Leg Aluminum Leg Axe Peak State ------------ > --- POWER ------------ Ion Engine > --- PROPULSION ------- Flight Unit Flight Unit Flight Unit Flight Unit > --- UTILITY ---------- Signal Interpreter Signal Interpreter Terrain Scanner Terrain Scan Processor > --- WEAPON ----------- Small Laser Beam Rifle > --- INVENTORY -------- Ion Engine Light Treads Aluminum Leg Aluminum Leg [Rating: 13] Favorites ----------- Power Ion Engine Engine Ion Engine Propulsion Hover Unit Leg Aluminum Leg Wheel Wheel Hover Unit Hover Unit Flight Unit Flight Unit Utility Signal Interpreter Device Terrain Scanner Storage Small Storage Unit Processor Signal Interpreter Weapon Light Assault Rifle Energy Gun Small Laser Ballistic Gun Light Assault Rifle Slashing Weapon Axe Build | -11 -10 -9 -8 ------- Run | Scr Mat Mat Mat Slots Evolved 4 | . . 2 2 Power . | . . . . Propulsion 2 | . . 2 . Utility 2 | . . . 2 Weapon . | . . . . Parts Attached 21 | . 5 2 14 Power 2 | . . . 2 Engine 2 | . . . 2 Core . | . . . . Reactor . | . . . . Propulsion 10 | . 4 . 6 Treads . | . . . . Leg . | . . . . Wheel 2 | . 2 . . Hover 4 | . 2 . 2 Flight 4 | . . . 4 Utility 4 | . . 2 2 Device 1 | . . . 1 Storage . | . . . . Processor 3 | . . 2 1 Hackware . | . . . . Protection . | . . . . Artifact . | . . . . Weapon 5 | . 1 . 4 Energy Gun 3 | . . . 3 Energy Cannon . | . . . . Ballistic Gun 1 | . 1 . . Ballistic Cannon . | . . . . Launcher . | . . . . Special Weapon . | . . . . Impact Weapon . | . . . . Slashing Weapon 1 | . . . 1 Piercing Weapon . | . . . . Special Melee Weapon . | . . . . Unidentified Prototypes . | . . . . Parts Lost 7 | . . . 7 Power 1 | . . . 1 Propulsion 5 | . . . 5 Utility 1 | . . . 1 Weapon . | . . . . Highest Loss Streak 5 | . . . 5 To Critical Strikes . | . . . . Average Slot Usage (%) 66 | . 55 68 70 Engine 9 | . 14 11 6 Hover 14 | . 18 22 9 Flight 5 | . . . 9 Device 3 | . . . 5 Processor 16 | . . 13 24 Energy Gun 6 | . 1 . 11 Ballistic Gun 9 | . 15 22 1 Naked Turns . | . . . . Heaviest Build 12 | 12 12 7 10 Greatest Support 20 | 20 20 12 16 Greatest Overweight (x) 1 | . . . 1 Average Overweight (x) . | . . . . Largest Inventory Capacity 8 | 8 8 5 5 Average Capacity 5 | 8 5 5 5 Most Carried 6 | 6 6 5 5 Average Carried 4 | 6 5 5 4 Final Capacity 8 | 8 5 5 5 Final Carried 6 | 6 5 5 4 Class Distribution -------------------- 78% | Mutant 21% | Scavenger-Mutant Dominant Class ---------------- Mutant | -10/Materials Mutant | -9/Materials Mutant | -8/Materials Resources | -11 -10 -9 -8 ----------- Run | Scr Mat Mat Mat Matter Collected 394 | 200 50 . 144 Remotely . | . . . . Salvage Created 285 | . 50 . 235 Parts 24 | . 5 . 19 Haulers Intercepted . | . . . . Recyclers Shooed 1 | . . . 1 Parts Field Recycled . | . . . . Retrieved Matter . | . . . . Parts Self-Destructed . | . . . . Prevented . | . . . . Kills | -11 -10 -9 -8 ------- Run | Scr Mat Mat Mat Combat Hostiles Destroyed 6 | . 1 . 5 Guns 6 | . 1 . 5 Classes Destroyed 7 | . 2 . 5 Builder 2 | . . . 2 Recycler 1 | . . . 1 Operator 1 | . 1 . . Watcher 1 | . . . 1 Swarmer 4 | . . . 4 Grunt 1 | . 1 . . Sentry 1 | . . . 1 Best Kill Streak 4 | . 1 . 4 Combat Bots Only 2 | . 1 . 2 Max Kills in Single Turn 1 | . 1 . 1 Gunslinging . | . . . . Exploded . | . . . . Melee . | . . . . Uniques/NPCs Destroyed . | . . . . Combat | -11 -10 -9 -8 -------- Run | Scr Mat Mat Mat Damage Taken 627 | . 34 13 580 Core 243 | . 11 . 232 Absorbed by Shields . | . . . . Core Remaining (%) 98 | 100 95 100 . Volleys Fired 42 | . 9 4 29 Largest 2 | . 2 2 2 Hottest 96 | . 40 40 96 Shots Fired 51 | . 11 8 32 Gun 51 | . 11 8 32 Cannon . | . . . . Launcher . | . . . . Special . | . . . . Kinetic 19 | . 11 8 . Thermal 32 | . . . 32 Explosive . | . . . . Electromagnetic . | . . . . Robot Hit Streak 11 | . 3 3 11 Robot Miss Streak 2 | . 2 1 2 Penetration Max . | . . . . Secondary Targets 1 | . . . 1 Max Gunslinging Chain 1 | . . . 1 Shots Hit Robots 35 | . 7 5 23 Core Hits 18 | . 4 1 13 Critical Kills . | . . . . Critical Parts Destroyed . | . . . . Critical Strikes 1 | . . . 1 Burn 1 | . . . 1 Melee Attacks 1 | . . . 1 Impact . | . . . . Slashing 1 | . . . 1 Piercing . | . . . . Sneak Attacks . | . . . . Combat Hostiles . | . . . . Follow-up Attacks . | . . . . Damage Inflicted 378 | . 58 41 279 Guns 378 | . 58 41 279 Cannons . | . . . . Explosions . | . . . . Melee . | . . . . Ramming . | . . . . Kinetic 99 | . 58 41 . Thermal 279 | . . . 279 Explosive . | . . . . Electromagnetic . | . . . . Impact . | . . . . Slashing . | . . . . Piercing . | . . . . Highest Corruption 1 | . . 1 . Average Corruption 1 | . . 1 . Corruption Purged . | . . . . Corruption Blocked . | . . . . Overload Shots . | . . . . Overflow Damage . | . . . . Projectiles . | . . . . Explosions . | . . . . Melee . | . . . . Knockbacks . | . . . . Impact . | . . . . Kinetic . | . . . . Secondary . | . . . . Self-Inflicted Damage . | . . . . Shots . | . . . . Rammed . | . . . . Targets Rammed . | . . . . Kicked . | . . . . Crushed . | . . . . Highest Temperature 68 | . 10 1 68 Average Temperature 15 | . 3 1 19 Received Heat Transfer 198 | . 18 9 171 Siege Activations . | . . . . Robots Corrupted . | . . . . Combat Hostiles . | . . . . Parts Fried . | . . . . Impact Corruptions . | . . . . Robots Melted . | . . . . Combat Hostiles . | . . . . Parts Melted 1 | . . . 1 Heat Transferred 721 | . . . 721 Parts Sabotaged . | . . . . Parts Stolen . | . . . . Parts Stripped . | . . . . Power Chain Reactions . | . . . . Missiles Intercepted . | . . . . Alert | -11 -10 -9 -8 ------- Run | Scr Mat Mat Mat Peak Influence 283 | . 65 72 283 Initial 29 | . . 27 29 Average 91 | . 27 43 141 Maximum Alert Level 1 | . . . 1 Low Security (%) 80 | 100 100 100 63 Level 1 19 | . . . 36 Level 2 . | . . . . Level 3 . | . . . . Level 4 . | . . . . Level 5 . | . . . . High Security . | . . . . Max Security . | . . . . Squads Dispatched 4 | . 2 1 1 Investigation . | . . . . Extermination . | . . . . Reinforcement 4 | . 2 1 1 Assault . | . . . . Garrison . | . . . . Intercept . | . . . . Searches Triggered . | . . . . Construction Impeded . | . . . . Haulers Reinforced . | . . . . Active Scanning Responses . | . . . . Cargo Convoy Interrupts . | . . . . Stealth | -11 -10 -9 -8 --------- Run | Scr Mat Mat Mat Distress Signals 3 | . . 1 2 Communications Jammed . | . . . . Distress Signals . | . . . . Times Spotted 31 | . 4 5 22 Peak Tracking Total 8 | . 1 3 8 Tactical Retreats 5 | . . 1 4 Traps | -11 -10 -9 -8 ------- Run | Scr Mat Mat Mat Traps Triggered 2 | . . 1 1 Indirectly . | . . . . Trap Hack Attempts . | . . . . Triggered . | . . . . Disarmed . | . . . . Reprogrammed . | . . . . Reused . | . . . . Traps Extracted . | . . . . Installed . | . . . . Triggered . | . . . . Machines | -11 -10 -9 -8 ---------- Run | Scr Mat Mat Mat Machines Disabled . | . . . . Max in Single Turn . | . . . . Machines Sabotaged . | . . . . Garrisons Compromised . | . . . . Overloaded Fab Kills . | . . . . Hacking | -11 -10 -9 -8 --------- Run | Scr Mat Mat Mat Machines Accessed 2 | . . 1 1 Terminals 2 | . . 1 1 Fabricators . | . . . . Repair Stations . | . . . . Recycling Units . | . . . . Scanalyzers . | . . . . Garrison Access . | . . . . Total Hacks 4 | . . 1 3 Successful 2 | . . 1 1 Failed 2 | . . . 2 Catastrophic 1 | . . . 1 Database Lockouts . | . . . . Manual 3 | . . . 3 Terminals 4 | . . 1 3 Fabricators . | . . . . Repair Stations . | . . . . Recycling Units . | . . . . Scanalyzers . | . . . . Garrison Access . | . . . . Terminal Hacks 2 | . . 1 1 Zone Layout 2 | . . 1 1 Fabricator Hacks . | . . . . Repair Station Hacks . | . . . . Recycling Unit Hacks . | . . . . Scanalyzer . | . . . . Garrison Access Hacks . | . . . . Unauthorized Hacks . | . . . . Terminals . | . . . . Fabricators . | . . . . Repair Stations . | . . . . Recycling Units . | . . . . Scanalyzers . | . . . . Garrison Access . | . . . . Data Cores Recovered . | . . . . Used . | . . . . Hacking Detections 2 | . . 1 1 Full Trace Events . | . . . . Feedback Events . | . . . . Feedback Blocked . | . . . . Robot Schematics Acquired . | . . . . Robots Built . | . . . . Authchips . | . . . . Time . | . . . . Total Robot Build Rating . | . . . . Part Schematics Acquired . | . . . . Parts Built . | . . . . Authchips . | . . . . Time . | . . . . Total Part Build Rating . | . . . . Parts Repaired . | . . . . Time . | . . . . Parts Recycled . | . . . . Recycled Matter . | . . . . Retrieved Matter . | . . . . Retrieved Components . | . . . . Parts Scanalyzed . | . . . . Part Schematics Acquired . | . . . . Parts Damaged . | . . . . Bothacking | -11 -10 -9 -8 ------------ Run | Scr Mat Mat Mat Used RIF Installer . | . . . . Robots Hacked . | . . . . Non-combat . | . . . . Combat . | . . . . Robot Hacks Applied . | . . . . Relay Couplers Released . | . . . . Fabnet Peak Effective % . | . . . . Robots Rewired . | . . . . Allies Hacked . | . . . . Hacks Repelled . | . . . . Allies | -11 -10 -9 -8 -------- Run | Scr Mat Mat Mat Total Allies . | . . . . Largest Group . | . . . . Highest-Rated Group . | . . . . Highest-Rated Ally . | . . . . Total Orders . | . . . . Ally Attacks . | . . . . Total Damage . | . . . . Kills . | . . . . Allies Corrupted . | . . . . Allies Melted . | . . . . Intel | -11 -10 -9 -8 ------- Run | Scr Mat Mat Mat Robot Analysis Total . | . . . . Derelict Logs Recovered . | . . . . Drone Launches . | . . . . Drone Recoveries . | . . . . Exploration | -11 -10 -9 -8 ------------- Run | Scr Mat Mat Mat Turns Passed 400 | 2 95 91 212 Spaces Moved 509 | 3 113 138 255 Core 1 | . . . 1 Treads . | . . . . Legs 5 | 3 2 . . Wheels 6 | . 6 . . Hover 341 | . 105 138 98 Flight 156 | . . . 156 Fastest Speed 31 | 120 56 56 31 Average Speed 51 | 120 60 56 43 Slowest Speed 120 | 120 120 56 120 Overloaded Moves . | . . . . Propulsion Burnouts . | . . . . Robots Hopped 3 | . . . 3 Cave-ins Triggered . | . . . . Exploration Rate (%) 21 | 2 24 21 40 Regions Visited 3 Branch Regions . Pre-discovered Areas . | . . . . Known Exits Taken 1 | . . 1 . Unknown Exits Taken 2 | 1 1 . . Scrap Searched . | . . . . Spaces Dug 1 | . . . 1 Terrain Destroyed 1 | . . . 1 Melee 1 | . . . 1 Projectile . | . . . . AOE . | . . . . Terrain Rammed . | . . . . Walls Destroyed . | . . . . Machines Disabled . | . . . . Actions | -11 -10 -9 -8 --------- Run | Scr Mat Mat Mat Total 588 | 1 130 143 314 Wait 14 | . . . 14 Move 499 | 1 112 137 249 Hop 3 | . . . 3 Pick Up . | . . . . Fast Attach 15 | . 3 2 10 Attach 3 | . . . 3 Detach 2 | . . . 2 Swap 3 | . 2 . 1 Drop 6 | . 4 . 2 Fire 42 | . 9 4 29 Melee 1 | . . . 1 Ram . | . . . . Kick . | . . . . Crush . | . . . . Escape Stasis . | . . . . Rewire . | . . . . Trap . | . . . . Miscellaneous . | . . . . Route ------- -11/Scrapyard -10/Materials -9/Materials -8/Materials History --------- Turn | Location | Event 1 | -11/Scrapyard | Discovered new exit (range 0) 3 | -11/Scrapyard | Entered Materials 96 | -10/Materials | Discovered new exit (range 4) 98 | -10/Materials | Entered another Materials area 98 | -9/Materials | Evolved 2 slots: Propulsion x2 180 | -9/Materials | Discovered new exit (range 14) 188 | -9/Materials | Identified exit to Materials 189 | -9/Materials | Entered another Materials area 189 | -8/Materials | Evolved 2 slots: Utility x2 401 | -8/Materials | Self-destructed Last Messages --------------- M011. 00345_ Fusion Modulator explodes. 00347_ Acquired 21 matter. 00350_ U-05 Engineer builds a Wall. 00352_ Flight Unit destroyed. 00354_ U-05 Engineer builds a Wall. 00356_ Flight Unit destroyed. 00359_ Acquired Axe. 00361_ Dropped Ion Engine. 00366_ Terrain Scanner destroyed. 00367_ K-01 Serf collects debris. 00377_ Flight Unit destroyed. 00377_ S-10 Pest destroyed. 00378_ Ion Engine destroyed. 00379_ Flight Unit melted. 00379_ S-10 Pest destroyed. 00380_ K-01 Serf collects debris. 00383_ G-47 Trooper suffers critical hit (Burn). 00385_ K-01 Serf collects debris. 00397_ T-07 Excavator is excavating. Map ----- +----------------------------------------------------+ | ?????????????### ####+### #?#?? | | ???????????????# #??????###+###???? | | ???????????????# +????????????????? | | ???????????????# ####????????????????? | | ???????????????# #???????????????????? | | ???????????????# #???????????????????# | | ???????????????# #???????????????????# | | ???????????????# #???????????????????? | | ???????????????# #???????????????????? | | ???????????????# #???????????????????# | | ???????????????# #???????????????????? | | ???????????????# #???????????????????? | | ???????????????# #???????????????????? | | ???????????????# #???????????????????? | | ?????????????### ###?????????????????? | | ????????###+## #?????????????????? | | ??????# # T #?????????????????? | | ???????# "" #?????????????????? | | ???????## *#?????????????????? | | ????????###### #?????????????????? | | ???????????#####+###?????????????????? | | ???????????# #??????????????????? | | ???????????# #??????????????????? | | ???????????# "" #??????????????????? | | ???????????# """#??????????????????? | | ???????????# @ S"#??????????????????? | | ???????????#! #??????????????????? | | ???????????########??????????????????? | | ?????????????????????????????????????? | | ?????????????????????????????????????? | | ?????????????????????????????????????? | | ?????????????????????????????????????? | | ?????????????????????????????????????? | | ?????????????????????????????????????? | | ?????????????????????????????????????? | | ?????????????????????????????????????? | | ?????????????????????????????????????? | | ?????????????????????????????????????? | | ?????????????????????????????????????? | | ?????????????????????????????????????? | | ?????????????????????????????????????? | | ?????????????????????????????????????? | | ?????????????????????????????????????? | | ?????????????????????????????????????? | | ?????????????????????????????????????? | | ?????????????????????????????????????? | | ?????????????????????????????????????? | | ?????????????????????????????????????? | | ?????????????????????????????????????? | | ?????????????????????????????????????? | +----------------------------------------------------+ Best States ------------- Heat Dissipation 31 Energy Generation 10 Energy Capacity 250 Matter Stores 300 Matter Capacity 300 Sight Range 16 Terrain Scan Range 14 Terrain Scan Density 85 Evasion (%) 63 Item Schematics ----------------- None Robot Schematics ------------------ None Fabricated ------------ Nothing Alien Tech Used ----------------- None Achievements -------------- None Challenges ------------ None Game ------ Seed GaussGravmagTendrils Manual? 0 Play Time 00:11:25 Cumulative 252.6 hours Start 2022.05.24 @ 16:36:46 End 2022.05.25 @ 10:23:03 Sessions 1 Manual Loads 0 Difficulty Rogue Special Mode None Game No. 342 Rogue 342 Adventurer 0 Explorer 0 Win Type - Total 5 Types 4/0/0/1/0/0/0/0/0 Lore% 66 Gallery% 78 Achievement% 57 Wizard Run 0 Options --------- ASCII 0 Keyboard 1 Movement Vi Keybinds 0 Fullscreen 1 Font 18/SmallcapsGlow Map View 76x50 Tactical HUD 1 Map Filters NONE Filters NONE Steam 1 RUN: 0453af8e-229c-4e2d-a796-975c1dc805c6